Workbook

Sheet List1
A1: Příloha č. 2 | B1: Cenový potávaných metod odhad
A2: Označení metody | B2: Pracoviště Náchod | C2: Počet vzorků | D2: Statim | E2: Frekvence stanovení | F2: Pracoviště Rychnov n/K | G2: Počet vzorků | H2: Statim | I2: Frekvence stanovení | J2: Pracoviště Broumov | K2: Počet vzorků | L2: Statim | M2: Frekvence stanovení | N2: Pracoviště Jaroměř | O2: Počet vzorků | P2: Statim | Q2: Frekvence stanovení | R2: Pracoviště Opočno | S2: Počet vzorků | T2: Statim | U2: Frekvence stanovení | V2: CELKEM počet vzorků za všechny lokality
A3: Urea | B3: ANO | C3: 61129 | D3: ANO | E3: 365 | F3: ANO | G3: 37971 | H3: ANO | I3: 365 | J3: ANO | K3: 22668 | L3: ANO | M3: 365 | N3: ANO | O3: 8636 | P3: ANO | Q3: prac.dny | R3: ANO | S3: 5914 | T3: ANO | U3: prac.dny | V3: =C3+G3+K3+O3+S3 -> 136318
A4: Urea v moči | B4: ANO | C4: 47 | D4: ANO | E4: 365 | F4: ANO | G4: 440 | H4: ANO | I4: 365 | J4: ANO | K4: 9 | L4: ANO | M4: 365 | P4: ANO | Q4: prac.dny | R4: ANO | S4: 66 | T4: ANO | U4: prac.dny | V4: 562
A5: Kreatinin | B5: ANO | C5: 66180 | D5: ANO | E5: 365 | F5: ANO | G5: 42724 | H5: ANO | I5: 365 | J5: ANO | K5: 24003 | L5: ANO | M5: 365 | N5: ANO | O5: 9974 | P5: ANO | Q5: prac.dny | R5: ANO | S5: 8544 | T5: ANO | U5: prac.dny | V5: 151425
A6: Kreatinin v moči | B6: ANO | C6: 5385 | D6: ANO | E6: 365 | F6: ANO | G6: 2526 | H6: ANO | I6: 365 | J6: ANO | K6: 325 | L6: ANO | M6: 365 | N6: ANO | O6: 37 | P6: ANO | Q6: prac.dny | R6: ANO | S6: 3256 | T6: ANO | U6: prac.dny | V6: 11529
A7: Cystatin C | F7: ANO | G7: 527 | I7: prac.dny | V7: 527
A8: Kyselina močová | B8: ANO | C8: 23450 | D8: ANO | E8: 365 | F8: ANO | G8: 17271 | H8: ANO | I8: 365 | J8: ANO | K8: 10695 | L8: ANO | M8: 365 | N8: ANO | O8: 5994 | P8: ANO | Q8: prac.dny | R8: ANO | S8: 6508 | T8: ANO | U8: prac.dny | V8: 63918
A9: Kyselina močová v moči | B9: ANO | C9: 89 | D9: ANO | E9: 365 | F9: ANO | H9: ANO | I9: 365 | J9: ANO | K9: 26 | L9: ANO | M9: 365 | R9: ANO | S9: 64 | T9: ANO | U9: prac.dny | V9: 179
A10: Na+ (Sodík v séru, likvoru a punktátu) | B10: ANO | C10: 62799 | D10: ANO | E10: 365 | F10: ANO | G10: 39163 | H10: ANO | I10: 365 | J10: ANO | K10: 25076 | L10: ANO | M10: 365 | N10: ANO | O10: 9717 | P10: ANO | Q10: prac.dny | R10: ANO | S10: 5478 | T10: ANO | U10: prac.dny | V10: 142233
A11: Na+ (Sodík v moči) | B11: ANO | C11: 75 | D11: ANO | E11: 365 | F11: ANO | G11: 447 | H11: ANO | I11: 365 | J11: ANO | K11: 63 | L11: ANO | M11: 365 | N11: ANO | O11: 11 | P11: ANO | Q11: prac.dny | R11: ANO | S11: 70 | T11: ANO | U11: prac.dny | V11: 666
A12: K+ (Draslík v séru, likvoru a punktátu) | B12: ANO | C12: 62799 | D12: ANO | E12: 365 | F12: ANO | G12: 40911 | H12: ANO | I12: 365 | J12: ANO | K12: 25076 | L12: ANO | M12: 365 | N12: ANO | O12: 9715 | P12: ANO | Q12: prac.dny | R12: ANO | S12: 5550 | T12: ANO | U12: prac.dny | V12: 144051
A13: K+ (Draslík v moči) | B13: ANO | C13: 75 | D13: ANO | E13: 365 | F13: ANO | G13: 442 | H13: ANO | I13: 365 | J13: ANO | K13: 63 | L13: ANO | M13: 365 | N13: ANO | O13: 11 | P13: ANO | Q13: prac.dny | R13: ANO | S13: 70 | T13: ANO | U13: prac.dny | V13: 661
A14: Cl- (Chloridy v séru, likvoru a punktátu) | B14: ANO | C14: 63124 | D14: ANO | E14: 365 | F14: ANO | G14: 25990 | H14: ANO | I14: 365 | J14: ANO | K14: 25073 | L14: ANO | M14: 365 | N14: ANO | O14: 9715 | P14: ANO | Q14: prac.dny | R14: ANO | S14: 5309 | T14: ANO | U14: prac.dny | V14: 129211
A15: Cl- (Chloridy v moči) | B15: ANO | C15: 45 | D15: ANO | E15: 365 | F15: ANO | G15: 433 | H15: ANO | I15: 365 | J15: ANO | K15: 63 | L15: ANO | M15: 365 | N15: ANO | O15: 11 | P15: ANO | Q15: prac.dny | S15: 69 | T15: ANO | U15: prac.dny | V15: 621
A16: Vápník | B16: ANO | C16: 12491 | D16: ANO | E16: 365 | F16: ANO | G16: 4718 | H16: ANO | I16: 365 | J16: ANO | K16: 2330 | L16: ANO | M16: 365 | N16: ANO | O16: 1577 | P16: ANO | Q16: prac.dny | R16: ANO | S16: 996 | T16: ANO | U16: prac.dny | V16: 22112
A17: Vápník v moči | B17: ANO | C17: 1621 | D17: ANO | E17: 365 | F17: ANO | G17: 506 | H17: ANO | I17: 365 | J17: ANO | K17: 386 | L17: ANO | M17: 365 | N17: ANO | O17: 68 | P17: ANO | Q17: prac.dny | R17: ANO | S17: 88 | T17: ANO | U17: prac.dny | V17: 2669
A18: Fosfor | B18: ANO | C18: 8041 | D18: ANO | E18: 365 | F18: ANO | G18: 3362 | H18: ANO | I18: 365 | J18: ANO | K18: 1787 | L18: ANO | M18: 365 | N18: ANO | O18: 407 | P18: ANO | Q18: prac.dny | R18: ANO | S18: 315 | T18: ANO | U18: prac.dny | V18: 13912
A19: Fosfor v moči | B19: ANO | C19: 211 | D19: ANO | E19: 365 | G19: 442 | H19: ANO | I19: 365 | J19: ANO | K19: 382 | L19: ANO | M19: 365 | N19: ANO | O19: 53 | P19: ANO | Q19: prac.dny | R19: ANO | S19: 78 | T19: ANO | U19: prac.dny | V19: 1166
A20: Hořčík | B20: ANO | C20: 5655 | D20: ANO | E20: 365 | F20: ANO | G20: 3884 | H20: ANO | I20: 365 | J20: ANO | K20: 10972 | L20: ANO | M20: 365 | N20: ANO | O20: 1203 | P20: ANO | Q20: prac.dny | R20: ANO | S20: 216 | T20: ANO | U20: prac.dny | V20: 21930
A21: Hořčík v moči | B21: ANO | C21: 91 | D21: ANO | E21: 365 | G21: 233 | H21: ANO | I21: 365 | J21: ANO | K21: 92 | L21: ANO | M21: 365 | V21: 416
A22: Železo celkové | B22: ANO | C22: 4094 | E22: prac.dny | F22: ANO | G22: 2440 | I22: prac.dny | J22: ANO | K22: 1123 | L22: ANO | M22: 365 | N22: ANO | O22: 1364 | P22: ANO | Q22: prac.dny | R22: ANO | S22: 443 | T22: ANO | U22: prac.dny | V22: 9464
A23: Vazebná kapacita železa | B23: ANO | C23: 2378 | E23: prac.dny | F23: ANO | G23: 1550 | I23: prac.dny | J23: ANO | K23: 511 | L23: ANO | M23: 365 | N23: ANO | O23: 311 | P23: ANO | Q23: prac.dny | R23: ANO | S23: 153 | T23: ANO | U23: prac.dny | V23: 4903
A24: Vitamin B12 | B24: ANO | C24: 3840 | E24: prac.dny | F24: ANO | G24: 1487 | I24: prac.dny | V24: 5327
A25: Kyselina listová (foláty) | B25: ANO | C25: 3342 | E25: prac.dny | F25: ANO | G25: 1193 | I25: prac.dny | V25: 4535
A26: Homocystein | B26: ANO | C26: 373 | E26: prac.dny | F26: ANO | G26: 385 | H26: ANO | I26: prac.dny | V26: 758
A27: Bilirubin celkový | B27: ANO | C27: 43273 | D27: ANO | E27: 365 | F27: ANO | G27: 23187 | H27: ANO | I27: 365 | J27: ANO | K27: 19305 | L27: ANO | M27: 365 | N27: ANO | O27: 6645 | P27: ANO | Q27: prac.dny | R27: ANO | S27: 4614 | T27: ANO | U27: prac.dny | V27: 97024
A28: Bilirubin konjugovaný | B28: ANO | C28: 12490 | D28: ANO | E28: 365 | F28: ANO | G28: 4201 | H28: ANO | I28: 365 | J28: ANO | K28: 3144 | L28: ANO | M28: 365 | N28: ANO | O28: 2044 | P28: ANO | Q28: prac.dny | R28: ANO | S28: 1952 | T28: ANO | U28: prac.dny | V28: 23831
A29: Bilirubin novorozenecký | B29: ANO | C29: 1060 | D29: ANO | E29: 365 | F29: ANO | G29: 690 | H29: ANO | I29: 365 | V29: 1750
A30: ALT | B30: ANO | C30: 52624 | D30: ANO | E30: 365 | F30: ANO | G30: 35393 | H30: ANO | I30: 365 | J30: ANO | K30: 20869 | L30: ANO | M30: 365 | N30: ANO | O30: 8022 | P30: ANO | Q30: prac.dny | R30: ANO | S30: 7759 | T30: ANO | U30: prac.dny | V30: 124667
A31: AST | B31: ANO | C31: 49606 | D31: ANO | E31: 365 | F31: ANO | G31: 33187 | H31: ANO | I31: 365 | J31: ANO | K31: 20742 | L31: ANO | M31: 365 | N31: ANO | O31: 7894 | P31: ANO | Q31: prac.dny | R31: ANO | S31: 7001 | T31: ANO | U31: prac.dny | V31: 118430
A32: Gamaglutamyltransferáza (GGT) | B32: ANO | C32: 34291 | D32: ANO | E32: 365 | F32: ANO | G32: 16169 | H32: ANO | I32: 365 | J32: ANO | K32: 13922 | L32: ANO | M32: 365 | N32: ANO | O32: 4717 | P32: ANO | Q32: prac.dny | R32: ANO | S32: 4157 | T32: ANO | U32: prac.dny | V32: 73256
A33: Fosfatáza alkalická (ALP) | B33: ANO | C33: 25989 | D33: ANO | E33: 365 | F33: ANO | G33: 13019 | H33: ANO | I33: 365 | J33: ANO | K33: 11614 | L33: ANO | M33: 365 | N33: ANO | O33: 3420 | P33: ANO | Q33: prac.dny | R33: ANO | S33: 2609 | T33: ANO | U33: prac.dny | V33: 56651
A34: ALP-kostní (osteáza) | F34: ANO | G34: 23 | I34: 1xt | V34: 23
A35: ELF score (Enhanced Liver Fibrosis) | B35: ANO | C35: 129 | E35: 1x týdně | V35: =C35+G35+K35+O35+S35 -> 129
A36: Laktátdehydrogenáza (LD) v séru, likvoru a punktátu | B36: ANO | C36: 3348 | D36: ANO | E36: 365 | F36: ANO | G36: 1119 | H36: ANO | I36: 365 | J36: ANO | K36: 3171 | L36: ANO | M36: 365 | R36: ANO | S36: 211 | T36: ANO | U36: prac.dny | V36: 7849
A37: Kreatinkináza (CK) | B37: ANO | C37: 8186 | D37: ANO | E37: 365 | F37: ANO | G37: 5375 | H37: ANO | I37: 365 | J37: ANO | K37: 6020 | L37: ANO | M37: 365 | N37: ANO | O37: 1734 | P37: ANO | Q37: prac.dny | R37: ANO | S37: 486 | T37: ANO | U37: prac.dny | V37: 21801
A38: CK-MB mass | F38: ANO | G38: 126 | I38: 365 | V38: 126
A39: Myoglobin | B39: ANO | C39: 2707 | D39: ANO | E39: 365 | F39: ANO | G39: 383 | H39: ANO | I39: 365 | J39: ANO | K39: 405 | L39: ANO | M39: 365 | V39: 3495
A40: hs Troponin T nebo I | B40: ANO | C40: 4315 | D40: ANO | E40: 365 | H40: ANO | I40: 365 | J40: ANO | K40: 2055 | L40: ANO | M40: 365 | R40: ANO | S40: 23 | U40: prac.dny | V40: 6393
A41: Natriuretické peptidy (NT-proBNP) | B41: ANO | C41: 1179 | D41: ANO | E41: 365 | F41: ANO | G41: 1819 | H41: ANO | I41: 365 | J41: ANO | K41: 2004 | L41: ANO | M41: 365 | V41: 5002
A42: Amyláza v séru a punktátu | B42: ANO | C42: 6563 | D42: ANO | E42: 365 | F42: ANO | G42: 3495 | H42: ANO | I42: 365 | J42: ANO | K42: 1528 | L42: ANO | M42: 365 | N42: ANO | O42: 800 | P42: ANO | R42: ANO | S42: 335 | T42: ANO | U42: prac.dny | V42: 12721
A43: Amyláza v moči | B43: ANO | C43: 84 | D43: ANO | E43: 365 | F43: ANO | G43: 120 | H43: ANO | I43: 365 | K43: 318 | L43: ANO | M43: 365 | N43: ANO | O43: 54 | P43: ANO | R43: ANO | S43: 45 | T43: ANO | U43: prac.dny | V43: 621
A44: Pankreatická amyláza v séru | F44: ANO | G44: 2835 | H44: ANO | I44: 365 | V44: 2835
A45: Pankreatická amyláza v moči | F45: ANO | G45: 52 | H45: ANO | I45: 365 | V45: 52
A46: Lipáza v séru a punktátu | B46: ANO | C46: 4698 | D46: ANO | E46: 365 | F46: ANO | G46: 3217 | H46: ANO | I46: 365 | V46: 7915
A47: Cholinesterasa | F47: ANO | G47: 215 | H47: ANO | I47: 365 | V47: 215
A48: Cholesterol celkový v séru a punktátu | B48: ANO | C48: 24561 | D48: ANO | E48: 365 | F48: ANO | G48: 18748 | H48: ANO | I48: 365 | J48: ANO | K48: 12921 | L48: ANO | M48: 365 | N48: ANO | O48: 6494 | P48: ANO | Q48: prac.dny | R48: ANO | S48: 7059 | T48: ANO | U48: prac.dny | V48: 69783
A49: Cholesterol HDL | B49: ANO | C49: 19705 | D49: ANO | E49: 365 | F49: ANO | G49: 15700 | I49: 365 | J49: ANO | K49: 9824 | L49: ANO | M49: 365 | N49: ANO | O49: 5844 | P49: ANO | Q49: prac.dny | R49: ANO | S49: 6575 | T49: ANO | U49: prac.dny | V49: 57648
A50: Cholesterol LDL | B50: ANO | C50: 20377 | D50: ANO | E50: 365 | F50: ANO | G50: 16257 | I50: 365 | J50: ANO | K50: 9840 | L50: ANO | M50: 365 | N50: ANO | O50: 5849 | P50: ANO | Q50: prac.dny | R50: ANO | S50: 6462 | T50: ANO | U50: prac.dny | V50: 58785
A51: Triacylglyceroly v séru a punktátu | B51: ANO | C51: 22940 | D51: ANO | E51: 365 | F51: ANO | G51: 16461 | H51: ANO | I51: 365 | J51: ANO | K51: 12195 | L51: ANO | M51: 365 | N51: ANO | O51: 6146 | P51: ANO | Q51: prac.dny | R51: ANO | S51: 6992 | T51: ANO | U51: prac.dny | V51: 64734
A52: Apolipoprotein A1 | B52: ANO | C52: 359 | E52: prac.dny | F52: ANO | G52: 467 | I52: prac.dny | V52: 826
A53: Apolipoprotein B | B53: ANO | C53: 280 | E53: prac.dny | F53: ANO | G53: 468 | I53: prac.dny | V53: 748
A54: Lipoprotein (a) | F54: ANO | G54: 73 | I54: prac.dny | V54: 73
A55: Bílkovina celková v séru a punktátu | B55: ANO | C55: 19228 | D55: ANO | E55: 365 | F55: ANO | G55: 6850 | H55: ANO | I55: 365 | J55: ANO | K55: 5236 | L55: ANO | M55: 365 | N55: ANO | O55: 2248 | P55: ANO | Q55: prac.dny | R55: ANO | S55: 370 | T55: ANO | U55: prac.dny | V55: 33932
A56: Bílkovina celková v moči | B56: ANO | C56: 1428 | D56: ANO | E56: 365 | F56: ANO | G56: 588 | H56: ANO | I56: 365 | J56: ANO | K56: 2393 | L56: ANO | M56: 365 | N56: ANO | O56: 1413 | P56: ANO | Q56: prac.dny | R56: ANO | S56: 84 | T56: ANO | U56: prac.dny | V56: 5906
A57: Bílkovina celková v likvoru | B57: ANO | C57: 334 | D57: ANO | E57: 365 | F57: ANO | G57: 112 | H57: ANO | I57: 365
A58: Prealbumin | B58: ANO | C58: 526 | D58: ANO | E58: 365 | F58: ANO | G58: 216 | H58: ANO | I58: 365 | V58: =C58+G58+K58+O58+S58 -> 742
A59: Albumin v séru a puktátu | B59: ANO | C59: 7661 | D59: ANO | E59: 365 | F59: ANO | G59: 2340 | H59: ANO | I59: 365 | J59: ANO | K59: 4525 | L59: ANO | M59: 365 | N59: ANO | O59: 241 | P59: ANO | Q59: prac.dny | R59: ANO | S59: 338 | T59: ANO | U59: prac.dny | V59: =C59+G59+K59+O59+S59 -> 15105
A60: Albumin v moči | B60: ANO | C60: 2592 | D60: ANO | E60: 365 | F60: ANO | G60: 2306 | H60: ANO | I60: 365 | J60: ANO | K60: 54 | L60: ANO | M60: 365 | R60: ANO | S60: 3174 | T60: ANO | U60: prac.dny | V60: =C60+G60+K60+O60+S60 -> 8126
A61: Albumin v likvoru | C61: 7 | D61: ANO | E61: 365 | F61: ANO | G61: 26 | H61: ANO | I61: 365
A62: Haptoglobin | B62: ANO | C62: 141 | E62: prac.dny | V62: =C62+G62+K62+O62+S62 -> 141
A63: Transferin | B63: ANO | C63: 2804 | E63: prac.dny | F63: ANO | G63: 540 | I63: prac.dny | J63: ANO | K63: 531 | L63: ANO | M63: 365 | N63: ANO | O63: 325 | P63: ANO | Q63: prac.dny | R63: ANO | S63: 168 | T63: ANO | U63: prac.dny | V63: 4368
A64: Solubilní transferinový receptor | B64: ANO | C64: 318 | E64: prac.dny | F64: ANO | G64: 421 | I64: prac.dny | V64: 739
A65: C3 složka komplementu | B65: ANO | C65: 82 | E65: prac.dny | F65: ANO | G65: 32 | I65: prac.dny | V65: 114
A66: C4 složka komplementu | B66: ANO | C66: 95 | E66: prac.dny | F66: ANO | G66: 33 | I66: prac.dny | V66: 128
A67: Beta-2-mikroglobulin | B67: ANO | C67: 638 | E67: prac.dny | F67: ANO | G67: 78 | I67: prac.dny | V67: 716
A68: IgG v séru | B68: ANO | C68: 2155 | E68: prac.dny | F68: ANO | G68: 615 | I68: prac.dny | R68: ANO | S68: 219 | T68: ANO | U68: prac.dny | V68: 2989
A69: IgG v likvoru | F69: ANO | G69: 17 | I69: prac.dny
A70: IgA v séru | B70: ANO | C70: 1783 | E70: prac.dny | F70: ANO | G70: 631 | I70: prac.dny | R70: ANO | S70: 260 | T70: ANO | U70: prac.dny | V70: =C70+G70+K70+O70+S70 -> 2674
A71: IgA v likvoru | F71: ANO | G71: 16 | I71: prac.dny
A72: IgM | B72: ANO | C72: 1766 | E72: prac.dny | F72: ANO | G72: 612 | I72: prac.dny | R72: ANO | S72: 220 | T72: ANO | U72: prac.dny | V72: =C72+G72+K72+O72+S72 -> 2598
A73: IgM v likvoru | F73: ANO | G73: 17 | I73: prac.dny
A74: IgE | B74: ANO | C74: 1420 | E74: prac.dny | F74: ANO | G74: 271 | I74: prac.dny | V74: =C74+G74+K74+O74+S74 -> 1691
A75: Eozinofilní kationový protein (ECP) | B75: ANO | C75: 372 | E75: 1x týdně | V75: 372
A76: C-reaktivní protein | B76: ANO | C76: 40700 | D76: ANO | E76: 365 | F76: ANO | G76: 29874 | H76: ANO | I76: 365 | J76: ANO | K76: 15589 | L76: ANO | M76: 365 | N76: ANO | O76: 4776 | Q76: prac.dny | R76: ANO | S76: 3427 | T76: ANO | U76: prac.dny | V76: 94366
A77: CIK (cirkulující imunokomplexy) | F77: ANO | G77: 147 | I77: prac.dny | V77: 147
A78: Prokalcitonin | B78: ANO | C78: 2981 | D78: ANO | E78: 365 | F78: ANO | G78: 279 | H78: ANO | I78: 365 | V78: 3260
A79: Interleukin 6 | B79: ANO | C79: 171 | D79: ANO | E79: 365 | F79: ANO | G79: 9 | H79: ANO | I79: 365 | V79: 180
A80: Revmatoidní faktor v séru a punktátu | B80: ANO | C80: 1828 | E80: prac.dny | F80: ANO | G80: 1083 | I80: prac.dny | N80: ANO | O80: 299 | Q80: prac.dny | R80: ANO | S80: 217 | U80: prac.dny | V80: 3427
A81: Antistreptolyzin O (ASLO) v séru a punktátu | B81: ANO | C81: 1500 | E81: prac.dny | F81: ANO | G81: 692 | I81: prac.dny | N81: ANO | O81: 279 | Q81: prac.dny | R81: ANO | S81: 244 | U81: prac.dny | V81: 2715
A82: Anti-CCP | F82: ANO | G82: 325 | I82: prac.dny | V82: 325
A83: Glukóza v séru, plazmě, likvoru a punktátu | B83: ANO | C83: 123942 | D83: ANO | E83: 365 | F83: ANO | G83: 40812 | H83: ANO | I83: 365 | J83: ANO | K83: 30832 | L83: ANO | M83: 365 | N83: ANO | O83: 12150 | Q83: prac.dny | R83: ANO | S83: 10951 | U83: prac.dny | V83: 218687
A84: Glukóza v moči | B84: ANO | C84: 521 | D84: ANO | E84: 365 | F84: ANO | G84: 388 | I84: 365 | J84: ANO | K84: 2359 | L84: ANO | M84: 365 | N84: ANO | O84: 1166 | Q84: prac.dny | R84: ANO | S84: 4539 | U84: prac.dny | V84: 8973
A85: Glukóza - hemolyzát | B85: ANO | C85: 1195 | D85: ANO | E85: 365 | J85: ANO | K85: 19475 | L85: ANO | M85: 365 | N85: ANO | O85: 1868 | Q85: prac.dny | R85: ANO | S85: 2542 | U85: prac.dny | V85: 25080
A86: Kyselina valproová | F86: ANO | G86: 84 | H86: ANO | I86: prac.dny | V86: 84
A87: Carbamazepin | F87: ANO | G87: 23 | H87: ANO | I87: prac.dny | V87: 23
A88: Lacosamid | B88: ANO | C88: 16 | E88: 1x týdně | V88: 16
A89: Lamotrigin | B89: ANO | C89: 88 | E89: 1x týdně | V89: 88
A90: Levetiracetam | B90: ANO | C90: 113 | E90: 1x týdně | V90: 113
A91: Digoxin | B91: ANO | C91: 498 | D91: ANO | E91: 365 | F91: ANO | G91: 769 | H91: ANO | I91: 365 | J91: ANO | K91: 342 | L91: ANO | M91: 365 | V91: 1609
A92: Teofylin | B92: ANO | C92: 138 | D92: ANO | E92: 365 | F92: ANO | G92: 193 | H92: ANO | I92: 365 | J92: ANO | K92: 175 | L92: ANO | M92: 365 | V92: 506
A93: Gentamycin | B93: ANO | C93: 107 | D93: ANO | E93: 365 | F93: ANO | G93: 103 | H93: ANO | I93: 365 | V93: 210
A94: Vankomycin | B94: ANO | C94: 102 | D94: ANO | E94: 365 | V94: 102
A95: Etanol | B95: ANO | C95: 522 | D95: ANO | E95: 365 | F95: ANO | G95: 710 | H95: ANO | I95: 365 | J95: ANO | K95: 171 | L95: ANO | M95: 365 | V95: 1403
A96: Tyreotropin (TSH) | B96: ANO | C96: 20817 | E96: prac.dny | F96: ANO | G96: 12608 | H96: ANO | I96: 365 | J96: ANO | K96: 14188 | L96: ANO | M96: 365 | N96: ANO | O96: 6146 | P96: ANO | Q96: prac.dny | R96: ANO | S96: 4865 | T96: ANO | U96: prac.dny | V96: 58624
A97: Trijodtyronin celkový (TT3) | F97: ANO | G97: 129 | I97: prac.dny | V97: 129
A98: Trijodtyronin volný (FT3) | B98: ANO | C98: 678 | E98: prac.dny | F98: ANO | G98: 1400 | I98: prac.dny | J98: ANO | K98: 969 | L98: ANO | M98: 365 | R98: ANO | S98: 1578 | T98: ANO | U98: prac.dny | V98: 4625
A99: Tyroxin volný (FT4) | B99: ANO | C99: 9939 | E99: prac.dny | F99: ANO | G99: 3213 | I99: prac.dny | J99: ANO | K99: 7347 | L99: ANO | M99: 365 | N99: ANO | O99: 2327 | P99: ANO | Q99: prac.dny | R99: ANO | S99: 2130 | T99: ANO | U99: prac.dny | V99: 24956
A100: Thyreoglobulin | B100: ANO | C100: 206 | E100: 1x týdně | F100: ANO | G100: 71 | I100: 2x týdně | V100: 277
A101: Autoprotilátky proti mikrosomálnímu antigenu (Anti-TPO) | B101: ANO | C101: 1695 | E101: prac.dny | F101: ANO | G101: 232 | I101: 2x týdně | V101: 1927
A102: Autoprotilátky proti tyreoglobulinu (Anti-TG) | B102: ANO | C102: 1404 | E102: prac.dny | F102: ANO | G102: 154 | I102: 2x týdně | V102: 1558
A103: TSI (TSH receptor Stimulating Imunoglobulins) | B103: ANO | C103: 364 | E103: 1x týdně | V103: 364
A104: TPS v séru a punktátu | G104: 240 | V104: 240
A105: Choriogonadotropin (HCG) | B105: ANO | C105: 791 | D105: ANO | E105: 365 | R105: ANO | S105: 51 | T105: ANO | U105: prac.dny | V105: 842
A106: Choriogonadotropin (HCG) - intaktní + beta | F106: ANO | G106: 477 | H106: ANO | I106: 365
A107: Folitropin (FSH) | B107: ANO | C107: 536 | E107: 1x týdně | F107: ANO | G107: 105 | I107: 2x týdně | V107: =C107+G107+K107+O107+S107 -> 641
A108: Lutropin (LH) | B108: ANO | C108: 454 | E108: 1x týdně | F108: ANO | G108: 116 | I108: 2x týdně | V108: 570
A109: Prolaktin | B109: ANO | C109: 521 | E109: 1x týdně | F109: ANO | G109: 185 | I109: 2x týdně | V109: 706
A110: Estradiol | B110: ANO | C110: 331 | E110: 1x týdně | F110: ANO | G110: 69 | I110: 2x týdně | V110: 400
A111: Progesteron | B111: ANO | C111: 220 | E111: 1x týdně | F111: ANO | G111: 159 | I111: 2x týdně | V111: 379
A112: Testosteron celkový | B112: ANO | C112: 471 | E112: 1x týdně | F112: ANO | G112: 213 | I112: 2x týdně | V112: 684
A113: Testosteron volný | G113: 75 | V113: 75
A114: Sex hormone binding globulin (SHBG) | B114: ANO | C114: 136 | E114: 1x týdně | F114: ANO | G114: 50 | I114: 2x týdně | V114: 186
A115: Preeklampsie | B115: ANO | C115: 148 | D115: ANO | E115: 365 | V115: 148
A116: Kortizol v séru | B116: ANO | C116: 545 | E116: 1x týdně | F116: ANO | G116: 138 | I116: 2x týdně | V116: 683
A117: Kortizol v moči | B117: ANO | C117: 44 | E117: 1x týdně | F117: ANO | G117: 19 | I117: 2x týdně | V117: 63
A118: Spojovací peptid proinzulinu (C-peptid) | B118: ANO | C118: 677 | E118: 1x týdně | F118: ANO | G118: 219 | I118: 2x týdně | V118: 896
A119: Prostatický specifický antigen (PSA) | B119: ANO | C119: 5731 | E119: prac.dny | F119: ANO | G119: 4312 | I119: prac.dny | J119: ANO | K119: 2503 | M119: 365 | N119: ANO | O119: 1957 | Q119: prac.dny | R119: ANO | S119: 1356 | U119: prac.dny | V119: 15859
A120: Prostatický specifický antigen (PSA) - volný | B120: ANO | C120: 961 | E120: prac.dny | F120: ANO | G120: 1574 | I120: prac.dny | J120: ANO | K120: 628 | M120: 365 | N120: ANO | O120: 818 | Q120: prac.dny | R120: ANO | S120: 290 | U120: prac.dny | V120: 4271
A121: proPSA | F121: ANO | G121: 78 | I121: prac.dny | V121: 78
A122: Alfa-1-fetoprotein (AFP) | B122: ANO | C122: 697 | E122: prac.dny | F122: ANO | G122: 429 | I122: prac.dny | V122: 1126
A123: Karcinoembryonalni antigen (CEA) v séru a punktátu | B123: ANO | C123: 3339 | E123: prac.dny | F123: ANO | G123: 991 | I123: prac.dny | V123: 4330
A124: Carbohydrate antigen 15-3 | B124: ANO | C124: 1286 | E124: prac.dny | F124: ANO | G124: 176 | I124: prac.dny | V124: 1462
A125: Carbohydrate antigen 19-9 | B125: ANO | C125: 2153 | E125: prac.dny | F125: ANO | G125: 1029 | I125: prac.dny | V125: 3182
A126: Carbohydrate antigen 72-4 | B126: ANO | C126: 1013 | E126: prac.dny | F126: ANO | G126: 139 | I126: prac.dny | V126: 1152
A127: Carbohydrate antigen 125 | B127: ANO | C127: 943 | E127: prac.dny | F127: ANO | G127: 314 | I127: prac.dny | V127: 1257
A128: HE4 (Human Epididymal protein 4) | B128: ANO | C128: 105 | E128: prac.dny | V128: 105
A129: ROMA score | B129: ANO | C129: 102 | E129: prac.dny | V129: 102
A130: SCC antigen | F130: ANO | G130: 21 | I130: 2x týdně | V130: 21
A131: Cytokeratin fragment 21-1 (CYFRA) v séru a punktátu | B131: ANO | C131: 363 | E131: prac.dny | F131: ANO | G131: 17 | I131: 2x týdně | V131: 380
A132: NSE | B132: ANO | C132: 322 | E132: prac.dny | F132: ANO | G132: 26 | I132: 2x týdně | V132: 348
A133: Feritin | B133: ANO | C133: 3831 | D133: ANO | E133: 365 | F133: ANO | G133: 2144 | I133: 365 | V133: 5975
A134: Parathormon intaktní | B134: ANO | C134: 4272 | E134: prac.dny | F134: ANO | I134: 2x týdně | V134: 4272
A135: Osteokalcin | B135: ANO | C135: 2031 | E135: prac.dny | F135: ANO | G135: 32 | I135: 2x týdně | V135: 2063
A136: Beta-CrossLaps | B136: ANO | C136: 1854 | E136: prac.dny | F136: ANO | I136: 2x týdně | V136: 1854
A137: Prokolagen typ I (Propeptid prokolagenu I) | B137: ANO | C137: 608 | E137: prac.dny | F137: ANO | I137: 2x týdně | V137: 608
A138: Deoxypyridinolin | G138: 24 | V138: 24
A139: 25-hydroxyvitamin D | B139: ANO | C139: 3093 | E139: prac.dny | F139: ANO | G139: 1579 | I139: prac.dny | V139: =C139+G139+K139+O139+S139 -> 4672
A140: Laktát v plazmě | B140: ANO | C140: 892 | D140: ANO | E140: 365 | F140: ANO | G140: 1237 | H140: ANO | I140: 365 | J140: ANO | K140: 232 | M140: 365 | V140: 2361
A141: Laktát v likvoru, puktátu | B141: ANO | C141: 337 | D141: ANO | E141: 365 | F141: ANO | G141: 48 | H141: ANO | I141: 365 | V141: 385
A142: Adrenokortikotropin (ACTH) | B142: ANO | C142: 82 | E142: 1x týdně | F142: ANO | G142: 65 | I142: 2x týdně | V142: 147
A143: Amoniak | F143: ANO | G143: 78 | H143: ANO | I143: 365 | V143: 78
A144: Hemoglobin ve stolici | F144: ANO | G144: 155 | I144: prac.dny | V144: 155
A145: Sérové indexy | B145: ANO | C145: 93354 | E145: 365 | F145: ANO | I145: 365 | J145: ANO | K145: 32147 | M145: 365 | N145: ANO | O145: 15893 | Q145: prac.dny | R145: ANO | S145: 15978 | U145: prac.dny | V145: 157372
A146: Specifické IgE proti: trávy I (směs) | B146: ANO | C146: 104 | E146: 1x týdně | V146: 104
A147: Specifické IgE proti: směs roztoči | B147: ANO | C147: 237 | E147: 1x týdně | V147: 237
A148: Specifické IgE proti: směs plísně | B148: ANO | C148: 34 | E148: 1x týdně | V148: 34
A149: Specifické IgE proti: směs stromy 9 | B149: ANO | C149: 108 | E149: 1x týdně | V149: 108
A150: Specifické IgE proti: kočka - srst | B150: ANO | C150: 51 | E150: 1x týdně | V150: 51
A151: Specifické IgE proti: pes - epitelie | B151: ANO | C151: 43 | E151: 1x týdně | V151: 43
A152: Specifické IgE proti: vaječný bílek | B152: ANO | C152: 61 | E152: 1x týdně | V152: 61
A153: Specifické IgE proti: mléko kravské | B153: ANO | C153: 137 | E153: 1x týdně | V153: 137
A154: Specifické IgE proti: mouka pšeničná | B154: ANO | C154: 86 | E154: 1x týdně | V154: 86
A155: Specifické IgE proti: vaječný žloutek | B155: ANO | C155: 39 | E155: 1x týdně | V155: 39
A156: Specifické IgE proti: gluten - lepek | B156: ANO | C156: 80 | E156: 1x týdně | V156: 80
A157: Specifické IgE proti: včela medonosná | B157: ANO | C157: 30 | E157: 1x týdně | V157: 30
A158: Specifické IgE proti: vosa obecná | B158: ANO | C158: 34 | E158: 1x týdně | V158: 34
A159: Specifické IgE proti: Aspergillus fumigatus | B159: ANO | C159: 17 | E159: 1x týdně | V159: 17
A160: Specifické IgE proti: Alternaria tenui | B160: ANO | C160: 34 | E160: 1x týdně | V160: 34
A161: Specifické IgE proti: pyl pelyněk černobýl (Artemisia vulgaris) | B161: ANO | C161: 12 | E161: 1x týdně | V161: 12
A162: Anti HAV IgG+IgM | F162: ANO | G162: 338 | I162: 2x týdně | V162: 338
A163: Anti HAV IgM | F163: ANO | G163: 134 | I163: 2x týdně | V163: 134
A164: HBsAg (Australský antigen) | F164: ANO | G164: 693 | I164: 2x týdně | V164: 693
A165: HBsAg - konfirmace | F165: ANO | G165: 4 | I165: 2x týdně | V165: 4
A166: Anti HBs | F166: ANO | G166: 505 | I166: 2x týdně | V166: 505
A167: Anti HBc IgG +IgM | F167: ANO | G167: 442 | I167: 2x týdně | V167: 442
A168: Anti HBc IgM | F168: ANO | G168: 38 | I168: 2x týdně | V168: 38
A169: Anti HBc IgM | F169: ANO | G169: 38 | I169: 2x týdně | V169: 38
A170: HCV (Ag/Ab) | F170: ANO | G170: 511 | I170: 2x týdně | V170: 511
A171: HIV-1 (protilátky) | F171: ANO | G171: 445 | I171: 2x týdně | V171: =C171+G171+K171+O171+S171 -> 445
A172: Ab/Treponema screen | F172: ANO | G172: 860 | I172: 2x týdně | V172: 860
A173: Ab/CMV IgG kvantit. | F173: ANO | G173: 215 | I173: 2x týdně | V173: 215
A174: Ab/CMV IgM | F174: ANO | G174: 215 | I174: 2x týdně | V174: 215
A175: CMV avidita | F175: ANO | G175: 10 | I175: 2x týdně | V175: 10
A176: Ab/Toxoplazma IgG kvant. | F176: ANO | G176: 86 | I176: 2x týdně | V176: 86
A177: Ab/Toxopl.IgM | F177: ANO | G177: 86 | I177: 2x týdně | V177: 86
A178: Ab/SARS-COV-2-IgG | F178: ANO | H178: ANO | I178: 365 | V178: 0
B179: Počet požadovaných metod - Pracoviště Náchod | F179: Počet požadovaných metod - Pracoviště Rychnov n/K | J179: Počet požadovaných metod - Pracoviště Broumov | N179: Počet požadovaných metod - Pracoviště Jaroměř | R179: Počet požadovaných metod - Pracoviště Opočno
A180: Náchod | B180: =COUNTIF(B3:B178,"ANO") -> 135
A181: Rychnov nad Kněžnou | F181: =COUNTIF(F3:F178,"ANO") -> 141
A182: Broumov | J182: =COUNTIF(J3:J178,"ANO") -> 55
A183: Jaroměř | N183: =COUNTIF(N3:N178,"ANO") -> 45
A184: Opočno | R184: =COUNTIF(R3:R178,"ANO") -> 54
